[Event "Titled Tuesday Blitz April 26 Late 2022"]
[White "Gutierrez Olivares, Daniel"]
[Black "Torres Cueto, Jesus Marcial"]
[WhiteFideId "2264005"]
[BlackFideId "4415280"]
[WhiteElo "2317"]
[BlackElo "2055"]
[Result "0-1"]
[Round "07"]
[TimeControl "180+1"]
[Date "2022.04.26"]
[WhiteClock "0:00:11"]
[BlackClock "0:00:19"]

1. Nf3 {[%clk 0:02:54]}  e6 {[%clk 0:02:50]} 2. g3 {[%clk 0:02:55]}  d5 {[%clk 0:02:42]} 3. c4 {[%clk 0:02:53]}  Nf6 {[%clk 0:02:41]} 4. Bg2 {[%clk 0:02:53]}  Be7 {[%clk 0:02:36]} 5. O-O {[%clk 0:02:53]}  O-O {[%clk 0:02:37]} 6. b3 {[%clk 0:02:54]}  b6 {[%clk 0:02:35]} 7. Bb2 {[%clk 0:02:54]}  Bb7 {[%clk 0:02:31]} 8. e3 {[%clk 0:02:54]}  Nbd7 {[%clk 0:02:30]} 9. d4 {[%clk 0:02:52]}  c5 {[%clk 0:02:30]} 10. Nc3 {[%clk 0:02:48]}  cxd4 {[%clk 0:02:26]} 11. Nxd4 {[%clk 0:02:47]}  Rb8 {[%clk 0:02:23]} 12. cxd5 {[%clk 0:02:38]}  exd5 {[%clk 0:02:09]} 13. Nf5 {[%clk 0:02:32]}  Nc5 {[%clk 0:01:52]} 14. Nxd5 {[%clk 0:02:15]}  Nxd5 {[%clk 0:01:48]} 15. Bxd5 {[%clk 0:02:12]}  Bf6 {[%clk 0:01:48]} 16. Bxb7 {[%clk 0:02:01]}  Bxb2 {[%clk 0:01:44]} 17. Rb1 {[%clk 0:01:43]}  Qf6 {[%clk 0:01:38]} 18. Qc2 {[%clk 0:01:24]}  Rxb7 {[%clk 0:01:22]} 19. Rxb2 {[%clk 0:01:22]}  g6 {[%clk 0:01:17]} 20. Nh6+ {[%clk 0:01:11]}  Kg7 {[%clk 0:01:17]} 21. Ng4 {[%clk 0:01:12]}  Qe6 {[%clk 0:01:17]} 22. Qc3+ {[%clk 0:01:02]}  f6 {[%clk 0:01:17]} 23. Qc4 {[%clk 0:01:03]}  Qxc4 {[%clk 0:01:12]} 24. bxc4 {[%clk 0:01:02]}  h5 {[%clk 0:01:12]} 25. Nxf6 {[%clk 0:00:57]}  Rxf6 {[%clk 0:01:00]} 26. Rfb1 {[%clk 0:00:58]}  Rd7 {[%clk 0:00:54]} 27. Kg2 {[%clk 0:00:49]}  Rfd6 {[%clk 0:00:51]} 28. Re2 {[%clk 0:00:43]}  Rd2 {[%clk 0:00:50]} 29. Rb2 {[%clk 0:00:44]}  Rxb2 {[%clk 0:00:49]} 30. Rxb2 {[%clk 0:00:44]}  Kf6 {[%clk 0:00:50]} 31. f4 {[%clk 0:00:42]}  Kf5 {[%clk 0:00:47]} 32. Kf3 {[%clk 0:00:42]}  Ne4 {[%clk 0:00:45]} 33. Rb5+ {[%clk 0:00:40]}  Nc5 {[%clk 0:00:44]} 34. h3 {[%clk 0:00:40]}  Rd3 {[%clk 0:00:40]} 35. g4+ {[%clk 0:00:39]}  hxg4+ {[%clk 0:00:41]} 36. hxg4+ {[%clk 0:00:40]}  Kf6 {[%clk 0:00:41]} 37. Ke2 {[%clk 0:00:40]}  Ra3 {[%clk 0:00:40]} 38. Rb2 {[%clk 0:00:40]}  g5 {[%clk 0:00:39]} 39. Rd2 {[%clk 0:00:37]}  gxf4 {[%clk 0:00:36]} 40. exf4 {[%clk 0:00:38]}  Rc3 {[%clk 0:00:36]} 41. Rd6+ {[%clk 0:00:37]}  Ke7 {[%clk 0:00:36]} 42. Rd4 {[%clk 0:00:37]}  Rc2+ {[%clk 0:00:36]} 43. Kf3 {[%clk 0:00:35]}  Rc3+ {[%clk 0:00:35]} 44. Ke2 {[%clk 0:00:33]}  Rc2+ {[%clk 0:00:35]} 45. Kf3 {[%clk 0:00:31]}  Rxa2 {[%clk 0:00:35]} 46. f5 {[%clk 0:00:31]}  Kf6 {[%clk 0:00:29]} 47. Rd6+ {[%clk 0:00:30]}  Ke5 {[%clk 0:00:28]} 48. Rd5+ {[%clk 0:00:30]}  Kf6 {[%clk 0:00:28]} 49. Rd6+ {[%clk 0:00:30]}  Ke7 {[%clk 0:00:28]} 50. Rh6 {[%clk 0:00:29]}  Rc2 {[%clk 0:00:24]} 51. g5 {[%clk 0:00:27]}  Rxc4 {[%clk 0:00:23]} 52. Rh7+ {[%clk 0:00:28]}  Kf8 {[%clk 0:00:21]} 53. f6 {[%clk 0:00:20]}  Ne6 {[%clk 0:00:20]} 54. g6 {[%clk 0:00:20]}  Rf4+ {[%clk 0:00:20]} 55. Ke3 {[%clk 0:00:18]}  Rxf6 {[%clk 0:00:20]} 56. Rxa7 {[%clk 0:00:19]}  Rxg6 {[%clk 0:00:20]} 57. Ra8+ {[%clk 0:00:16]}  Ke7 {[%clk 0:00:20]} 58. Rb8 {[%clk 0:00:17]}  Nc5 {[%clk 0:00:20]} 59. Kf4 {[%clk 0:00:14]}  Rd6 {[%clk 0:00:19]} 60. Ke3 {[%clk 0:00:13]}  Ke6 {[%clk 0:00:20]} 61. Rh8 {[%clk 0:00:11]}  Kd5 {[%clk 0:00:20]} 62. Kd2 {[%clk 0:00:11]}  b5 {[%clk 0:00:20]} 63. Kc2 {[%clk 0:00:12]}  Kc6 {[%clk 0:00:19]} 64. Rc8+ {[%clk 0:00:12]}  Kb6 {[%clk 0:00:20]} 65. Rb8+ {[%clk 0:00:12]}  Nb7 {[%clk 0:00:20]} 66. Kb3 {[%clk 0:00:12]}  Rd4 {[%clk 0:00:20]} 67. Rh8 {[%clk 0:00:11]}  Rg4 {[%clk 0:00:21]} 68. Rh3 {[%clk 0:00:11]}  Ka5 {[%clk 0:00:21]} 69. Ka3 {[%clk 0:00:10]}  Nc5 {[%clk 0:00:21]} 70. Kb2 {[%clk 0:00:11]}  Ka4 {[%clk 0:00:21]} 71. Ra3+ {[%clk 0:00:10]}  Kb4 {[%clk 0:00:21]} 72. Rf3 {[%clk 0:00:09]}  Rg2+ {[%clk 0:00:22]} 73. Kc1 {[%clk 0:00:10]}  Kc4 {[%clk 0:00:20]} 74. Rf4+ {[%clk 0:00:10]}  Kb3 {[%clk 0:00:20]} 75. Rf2 {[%clk 0:00:11]}  Rxf2 {[%clk 0:00:19]} 0-1


[Site "https://www.chess.com"]

[Event "Titled Tuesday Blitz April 26 Late 2022"]
[White "Janaszak, Dawid"]
[Black "Xu, Yi"]
[WhiteFideId "1119206"]
[BlackFideId "8605564"]
[WhiteElo "2199"]
[BlackElo "2471"]
[Result "0-1"]
[Round "07"]
[TimeControl "180+1"]
[Date "2022.04.26"]
[WhiteClock "0:00:39"]
[BlackClock "0:00:57"]

1. e4 {[%clk 0:03:00]}  c5 {[%clk 0:03:00]} 2. Nc3 {[%clk 0:02:59]}  d6 {[%clk 0:02:59]} 3. d4 {[%clk 0:02:59]}  cxd4 {[%clk 0:02:59]} 4. Qxd4 {[%clk 0:03:00]}  Nc6 {[%clk 0:02:58]} 5. Qd2 {[%clk 0:02:58]}  g6 {[%clk 0:02:58]} 6. b3 {[%clk 0:02:55]}  Bh6 {[%clk 0:02:57]} 7. f4 {[%clk 0:02:54]}  f5 {[%clk 0:02:57]} 8. Bb2 {[%clk 0:02:44]}  Nf6 {[%clk 0:02:57]} 9. O-O-O {[%clk 0:02:39]}  fxe4 {[%clk 0:02:48]} 10. h3 {[%clk 0:02:39]}  Nh5 {[%clk 0:02:21]} 11. Nge2 {[%clk 0:02:30]}  Rf8 {[%clk 0:02:19]} 12. Nxe4 {[%clk 0:02:04]}  Nxf4 {[%clk 0:02:17]} 13. Kb1 {[%clk 0:01:55]}  Bf5 {[%clk 0:01:54]} 14. N2g3 {[%clk 0:01:50]}  Qc7 {[%clk 0:01:37]} 15. Nc3 {[%clk 0:01:29]}  O-O-O {[%clk 0:01:32]} 16. Nd5 {[%clk 0:01:25]}  Nxd5 {[%clk 0:01:31]} 17. Qxh6 {[%clk 0:01:25]}  Bxc2+ {[%clk 0:01:26]} 18. Ka1 {[%clk 0:00:44]}  Bxd1 {[%clk 0:01:25]} 19. Bc4 {[%clk 0:00:43]}  Ndb4 {[%clk 0:00:58]} 20. Rxd1 {[%clk 0:00:39]}  d5 {[%clk 0:00:57]} 0-1


[Site "https://www.chess.com"]

[Event "Titled Tuesday Blitz April 26 Late 2022"]
[White "Kostiukov, Alexandr"]
[Black "Sailer, Mike"]
[WhiteFideId "14108100"]
[BlackFideId "2012901"]
[WhiteElo "2202"]
[BlackElo "2109"]
[Result "0-1"]
[Round "07"]
[TimeControl "180+1"]
[Date "2022.04.26"]
[WhiteClock "0:00:09"]
[BlackClock "0:00:09"]

1. e4 {[%clk 0:02:59]}  d5 {[%clk 0:02:59]} 2. exd5 {[%clk 0:02:59]}  Qxd5 {[%clk 0:02:59]} 3. Nc3 {[%clk 0:02:59]}  Qd6 {[%clk 0:02:59]} 4. g3 {[%clk 0:02:58]}  Nf6 {[%clk 0:02:59]} 5. Bg2 {[%clk 0:02:58]}  c6 {[%clk 0:02:59]} 6. Nge2 {[%clk 0:02:59]}  Bf5 {[%clk 0:03:00]} 7. O-O {[%clk 0:02:59]}  e6 {[%clk 0:03:00]} 8. d4 {[%clk 0:02:59]}  Be7 {[%clk 0:03:00]} 9. Bf4 {[%clk 0:02:59]}  Qd8 {[%clk 0:02:59]} 10. h3 {[%clk 0:02:42]}  h6 {[%clk 0:02:59]} 11. g4 {[%clk 0:02:40]}  Bh7 {[%clk 0:02:59]} 12. Ng3 {[%clk 0:02:39]}  Nbd7 {[%clk 0:02:59]} 13. Re1 {[%clk 0:02:36]}  Nb6 {[%clk 0:02:58]} 14. Nce2 {[%clk 0:02:25]}  Nbd5 {[%clk 0:02:49]} 15. Bd2 {[%clk 0:02:25]}  b5 {[%clk 0:02:44]} 16. b3 {[%clk 0:02:24]}  b4 {[%clk 0:02:41]} 17. Rc1 {[%clk 0:02:20]}  O-O {[%clk 0:02:40]} 18. c4 {[%clk 0:02:17]}  bxc3 {[%clk 0:02:40]} 19. Nxc3 {[%clk 0:02:16]}  Nb4 {[%clk 0:02:29]} 20. Nce4 {[%clk 0:02:02]}  Nd3 {[%clk 0:02:25]} 21. Ba5 {[%clk 0:01:51]}  Qxa5 {[%clk 0:02:16]} 22. Qxd3 {[%clk 0:01:50]}  Nd5 {[%clk 0:02:03]} 23. a4 {[%clk 0:01:27]}  Rab8 {[%clk 0:01:48]} 24. Qf3 {[%clk 0:00:31]}  Ba3 {[%clk 0:01:18]} 25. Rcd1 {[%clk 0:00:23]}  Bb4 {[%clk 0:01:18]} 26. Re2 {[%clk 0:00:22]}  f5 {[%clk 0:01:12]} 27. gxf5 {[%clk 0:00:18]}  exf5 {[%clk 0:01:12]} 28. Nc5 {[%clk 0:00:08]}  Nc3 {[%clk 0:01:11]} 29. Rdd2 {[%clk 0:00:07]}  Nxe2+ {[%clk 0:01:11]} 30. Rxe2 {[%clk 0:00:07]}  Bxc5 {[%clk 0:01:09]} 31. dxc5 {[%clk 0:00:08]}  Qxc5 {[%clk 0:01:07]} 32. Qxc6 {[%clk 0:00:09]}  Qxc6 {[%clk 0:00:51]} 33. Bxc6 {[%clk 0:00:09]}  Kh8 {[%clk 0:00:48]} 34. Bd5 {[%clk 0:00:09]}  Bg8 {[%clk 0:00:48]} 35. Bxg8 {[%clk 0:00:06]}  Kxg8 {[%clk 0:00:49]} 36. Rb2 {[%clk 0:00:06]}  Rb4 {[%clk 0:00:48]} 37. Ne2 {[%clk 0:00:04]}  Rfb8 {[%clk 0:00:48]} 38. Nc1 {[%clk 0:00:04]}  Rxa4 {[%clk 0:00:48]} 39. Nd3 {[%clk 0:00:03]}  Ra1+ {[%clk 0:00:46]} 40. Kg2 {[%clk 0:00:04]}  Rd1 {[%clk 0:00:45]} 41. Nf4 {[%clk 0:00:04]}  g5 {[%clk 0:00:44]} 42. Ne6 {[%clk 0:00:04]}  Rb6 {[%clk 0:00:34]} 43. Nc5 {[%clk 0:00:04]}  Rd5 {[%clk 0:00:29]} 44. b4 {[%clk 0:00:04]}  Rxc5 {[%clk 0:00:28]} 45. Ra2 {[%clk 0:00:04]}  Rc7 {[%clk 0:00:19]} 46. Ra5 {[%clk 0:00:04]}  f4 {[%clk 0:00:20]} 47. h4 {[%clk 0:00:05]}  Rg7 {[%clk 0:00:16]} 48. hxg5 {[%clk 0:00:05]}  hxg5 {[%clk 0:00:16]} 49. Kf3 {[%clk 0:00:06]}  Rxb4 {[%clk 0:00:16]} 50. Rc5 {[%clk 0:00:05]}  g4+ {[%clk 0:00:12]} 51. Kg2 {[%clk 0:00:05]}  Rb2 {[%clk 0:00:10]} 52. Rc7 {[%clk 0:00:05]}  Rxc7 {[%clk 0:00:09]} 53. Kf1 {[%clk 0:00:06]}  Rcc2 {[%clk 0:00:09]} 54. Kg2 {[%clk 0:00:07]}  Rxf2+ {[%clk 0:00:09]} 55. Kg1 {[%clk 0:00:08]}  Rfc2 {[%clk 0:00:09]} 56. Kh1 {[%clk 0:00:09]}  Rc1# {[%clk 0:00:09]} 0-1


[Site "https://www.chess.com"]

[Event "Titled Tuesday Blitz April 26 Late 2022"]
[White "Kozak, Adam"]
[Black "Rosen, Eric"]
[WhiteFideId "753246"]
[BlackFideId "2032562"]
[WhiteElo "2459"]
[BlackElo "2362"]
[Result "1-0"]
[Round "07"]
[TimeControl "180+1"]
[Date "2022.04.26"]
[WhiteClock "0:00:39"]
[BlackClock "0:00:38"]

1. Nf3 {[%clk 0:02:57]}  d5 {[%clk 0:02:59]} 2. g3 {[%clk 0:02:51]}  Nf6 {[%clk 0:02:59]} 3. Bg2 {[%clk 0:02:47]}  e6 {[%clk 0:03:00]} 4. O-O {[%clk 0:02:48]}  Be7 {[%clk 0:03:00]} 5. d4 {[%clk 0:02:48]}  b5 {[%clk 0:03:00]} 6. a4 {[%clk 0:02:47]}  b4 {[%clk 0:03:01]} 7. c4 {[%clk 0:02:48]}  bxc3 {[%clk 0:03:01]} 8. bxc3 {[%clk 0:02:48]}  O-O {[%clk 0:03:02]} 9. c4 {[%clk 0:02:49]}  a5 {[%clk 0:02:48]} 10. Ba3 {[%clk 0:02:45]}  Na6 {[%clk 0:02:46]} 11. Ne5 {[%clk 0:02:43]}  Bxa3 {[%clk 0:02:38]} 12. Nxa3 {[%clk 0:02:42]}  Nb4 {[%clk 0:02:39]} 13. cxd5 {[%clk 0:02:34]}  Nfxd5 {[%clk 0:02:31]} 14. Qd2 {[%clk 0:02:09]}  Ba6 {[%clk 0:02:28]} 15. Rfc1 {[%clk 0:02:08]}  Qd6 {[%clk 0:02:22]} 16. Nac4 {[%clk 0:02:05]}  Bxc4 {[%clk 0:02:18]} 17. Nxc4 {[%clk 0:02:06]}  Qe7 {[%clk 0:02:14]} 18. Rab1 {[%clk 0:01:57]}  c5 {[%clk 0:02:03]} 19. e4 {[%clk 0:01:57]}  Nf6 {[%clk 0:01:45]} 20. d5 {[%clk 0:01:56]}  exd5 {[%clk 0:01:40]} 21. exd5 {[%clk 0:01:56]}  Rad8 {[%clk 0:01:38]} 22. d6 {[%clk 0:01:56]}  Qa7 {[%clk 0:01:34]} 23. Rb3 {[%clk 0:01:53]}  Rfe8 {[%clk 0:01:29]} 24. Re3 {[%clk 0:01:52]}  Qd7 {[%clk 0:00:47]} 25. Rce1 {[%clk 0:01:39]}  Rxe3 {[%clk 0:00:43]} 26. Rxe3 {[%clk 0:01:34]}  Qxa4 {[%clk 0:00:42]} 27. Ra3 {[%clk 0:01:00]}  Qb5 {[%clk 0:00:39]} 28. Bf1 {[%clk 0:00:58]}  a4 {[%clk 0:00:34]} 29. Qd1 {[%clk 0:00:58]}  Nbd5 {[%clk 0:00:21]} 30. Qd2 {[%clk 0:00:50]}  h5 {[%clk 0:00:13]} 31. Qc2 {[%clk 0:00:39]}  Qd7 {[%clk 0:00:09]} 32. Rxa4 {[%clk 0:00:36]}  Nb4 {[%clk 0:00:08]} 33. Qb3 {[%clk 0:00:36]}  Qf5 {[%clk 0:00:05]} 34. h3 {[%clk 0:00:13]}  Ne4 {[%clk 0:00:05]} 35. Qe3 {[%clk 0:00:13]}  Nxd6 {[%clk 0:00:04]} 36. Nxd6 {[%clk 0:00:07]}  Rxd6 {[%clk 0:00:05]} 37. Ra8+ {[%clk 0:00:08]}  Kh7 {[%clk 0:00:06]} 38. Qe8 {[%clk 0:00:08]}  Kg6 {[%clk 0:00:05]} 39. Ra3 {[%clk 0:00:04]}  Rf6 {[%clk 0:00:05]} 40. Qe3 {[%clk 0:00:04]}  Nc2 {[%clk 0:00:04]} 41. Qd2 {[%clk 0:00:02]}  c4 {[%clk 0:00:02]} 42. Rc3 {[%clk 0:00:02]}  Nd4 {[%clk 0:00:02]} 43. Qxd4 {[%clk 0:00:02]}  Re6 {[%clk 0:00:01]} 44. Rxc4 {[%clk 0:00:02]}  Kh6 {[%clk 0:00:01]} 45. Qd2+ {[%clk 0:00:02]}  g5 {[%clk 0:00:01]} 46. Rd4 {[%clk 0:00:03]}  Qf6 {[%clk 0:00:02]} 47. h4 {[%clk 0:00:03]}  Re5 {[%clk 0:00:01]} 48. Rd6 {[%clk 0:00:03]}  Re6 {[%clk 0:00:01]} 49. Rxe6 {[%clk 0:00:04]}  fxe6 {[%clk 0:00:02]} 50. hxg5+ {[%clk 0:00:04]}  Qxg5 {[%clk 0:00:02]} 51. Qxg5+ {[%clk 0:00:04]}  Kxg5 {[%clk 0:00:03]} 52. Kg2 {[%clk 0:00:05]}  h4 {[%clk 0:00:04]} 53. Kf3 {[%clk 0:00:05]}  e5 {[%clk 0:00:04]} 54. gxh4+ {[%clk 0:00:05]}  Kxh4 {[%clk 0:00:05]} 55. Ke4 {[%clk 0:00:05]}  Kg4 {[%clk 0:00:06]} 56. f3+ {[%clk 0:00:06]}  Kg3 {[%clk 0:00:06]} 57. Bc4 {[%clk 0:00:05]}  Kf2 {[%clk 0:00:06]} 58. Be6 {[%clk 0:00:06]}  Kg3 {[%clk 0:00:06]} 59. Bg4 {[%clk 0:00:07]}  Kh4 {[%clk 0:00:07]} 60. Kxe5 {[%clk 0:00:08]}  Kg5 {[%clk 0:00:08]} 61. Ke6 {[%clk 0:00:08]}  Kg6 {[%clk 0:00:09]} 62. Kd7 {[%clk 0:00:09]}  Kg5 {[%clk 0:00:09]} 63. Kc6 {[%clk 0:00:10]}  Kf4 {[%clk 0:00:10]} 64. Kb5 {[%clk 0:00:11]}  Kg5 {[%clk 0:00:11]} 65. Ka4 {[%clk 0:00:11]}  Kf4 {[%clk 0:00:12]} 66. Ka3 {[%clk 0:00:12]}  Kg5 {[%clk 0:00:13]} 67. Ka2 {[%clk 0:00:13]}  Kf4 {[%clk 0:00:14]} 68. Ka1 {[%clk 0:00:14]}  Ke5 {[%clk 0:00:14]} 69. Kb1 {[%clk 0:00:15]}  Kf4 {[%clk 0:00:15]} 70. Kc1 {[%clk 0:00:16]}  Ke5 {[%clk 0:00:16]} 71. Kd1 {[%clk 0:00:17]}  Kf4 {[%clk 0:00:17]} 72. Ke1 {[%clk 0:00:17]}  Ke3 {[%clk 0:00:18]} 73. Kf1 {[%clk 0:00:18]}  Kf4 {[%clk 0:00:18]} 74. Kg1 {[%clk 0:00:19]}  Kg3 {[%clk 0:00:19]} 75. Kh1 {[%clk 0:00:19]}  Kh4 {[%clk 0:00:14]} 76. Kh2 {[%clk 0:00:20]}  Kg5 {[%clk 0:00:15]} 77. Kg3 {[%clk 0:00:21]}  Kf6 {[%clk 0:00:15]} 78. f4 {[%clk 0:00:21]}  Kg6 {[%clk 0:00:16]} 79. f5+ {[%clk 0:00:22]}  Kf6 {[%clk 0:00:17]} 80. Bh3 {[%clk 0:00:22]}  Kg5 {[%clk 0:00:18]} 81. Kf3 {[%clk 0:00:23]}  Kf6 {[%clk 0:00:18]} 82. Kf4 {[%clk 0:00:23]}  Kg7 {[%clk 0:00:18]} 83. Bf1 {[%clk 0:00:24]}  Kf7 {[%clk 0:00:19]} 84. Be2 {[%clk 0:00:25]}  Kf6 {[%clk 0:00:20]} 85. Bd1 {[%clk 0:00:26]}  Kg7 {[%clk 0:00:21]} 86. Bc2 {[%clk 0:00:26]}  Kf6 {[%clk 0:00:22]} 87. Bb3 {[%clk 0:00:27]}  Kg7 {[%clk 0:00:23]} 88. Ba4 {[%clk 0:00:28]}  Kf6 {[%clk 0:00:24]} 89. Bb5 {[%clk 0:00:29]}  Kg7 {[%clk 0:00:25]} 90. Bc4 {[%clk 0:00:30]}  Kf6 {[%clk 0:00:26]} 91. Bd3 {[%clk 0:00:31]}  Kg7 {[%clk 0:00:27]} 92. Be4 {[%clk 0:00:31]}  Kf6 {[%clk 0:00:27]} 93. Bf3 {[%clk 0:00:32]}  Kg7 {[%clk 0:00:28]} 94. Bg4 {[%clk 0:00:33]}  Kf6 {[%clk 0:00:29]} 95. Bh3 {[%clk 0:00:33]}  Kg7 {[%clk 0:00:30]} 96. Kg5 {[%clk 0:00:34]}  Kf7 {[%clk 0:00:28]} 97. Bg4 {[%clk 0:00:34]}  Kg7 {[%clk 0:00:28]} 98. f6+ {[%clk 0:00:32]}  Kh7 {[%clk 0:00:29]} 99. Bf3 {[%clk 0:00:32]}  Kg8 {[%clk 0:00:29]} 100. Bg2 {[%clk 0:00:33]}  Kf7 {[%clk 0:00:30]} 101. Bf1 {[%clk 0:00:34]}  Kg8 {[%clk 0:00:30]} 102. Be2 {[%clk 0:00:35]}  Kf7 {[%clk 0:00:31]} 103. Bd1 {[%clk 0:00:35]}  Kg8 {[%clk 0:00:31]} 104. Bc2 {[%clk 0:00:36]}  Kf7 {[%clk 0:00:32]} 105. Ba4 {[%clk 0:00:37]}  Kg8 {[%clk 0:00:33]} 106. Bb5 {[%clk 0:00:37]}  Kh7 {[%clk 0:00:34]} 107. Ba6 {[%clk 0:00:38]}  Kg8 {[%clk 0:00:35]} 108. Bb7 {[%clk 0:00:39]}  Kh7 {[%clk 0:00:36]} 109. Ba8 {[%clk 0:00:39]}  Kg8 {[%clk 0:00:37]} 110. Kg6 {[%clk 0:00:39]}  Kh8 {[%clk 0:00:37]} 111. Bg2 {[%clk 0:00:40]}  Kg8 {[%clk 0:00:37]} 112. f7+ {[%clk 0:00:39]}  Kf8 {[%clk 0:00:38]} 113. Bf1 {[%clk 0:00:39]} 1-0


[Site "https://www.chess.com"]

[Event "Titled Tuesday Blitz April 26 Late 2022"]
[White "Lashkin, Jegor"]
[Black "Omariev, Maksim"]
[WhiteFideId "13907808"]
[BlackFideId "4193423"]
[WhiteElo "2368"]
[BlackElo "2517"]
[Result "1-0"]
[Round "07"]
[TimeControl "180+1"]
[Date "2022.04.26"]
[WhiteClock "0:01:42"]
[BlackClock "0:00:46"]

1. d4 {[%clk 0:03:00]}  Nf6 {[%clk 0:02:53]} 2. c4 {[%clk 0:03:00]}  c5 {[%clk 0:02:50]} 3. d5 {[%clk 0:03:00]}  e6 {[%clk 0:02:50]} 4. Nc3 {[%clk 0:03:00]}  exd5 {[%clk 0:02:49]} 5. cxd5 {[%clk 0:03:01]}  d6 {[%clk 0:02:49]} 6. e4 {[%clk 0:03:02]}  g6 {[%clk 0:02:50]} 7. h3 {[%clk 0:03:02]}  Bg7 {[%clk 0:02:50]} 8. Bd3 {[%clk 0:03:02]}  O-O {[%clk 0:02:51]} 9. Nf3 {[%clk 0:03:03]}  Re8 {[%clk 0:02:51]} 10. O-O {[%clk 0:03:03]}  a6 {[%clk 0:02:51]} 11. a4 {[%clk 0:03:03]}  Nbd7 {[%clk 0:02:49]} 12. Bf4 {[%clk 0:03:03]}  Qe7 {[%clk 0:02:41]} 13. Re1 {[%clk 0:03:02]}  Nh5 {[%clk 0:02:40]} 14. Bh2 {[%clk 0:03:02]}  Ne5 {[%clk 0:02:39]} 15. Be2 {[%clk 0:03:03]}  Nxf3+ {[%clk 0:02:17]} 16. Bxf3 {[%clk 0:03:04]}  Be5 {[%clk 0:02:14]} 17. Bxh5 {[%clk 0:03:03]}  Bxh2+ {[%clk 0:02:15]} 18. Kxh2 {[%clk 0:03:03]}  Qe5+ {[%clk 0:02:16]} 19. g3 {[%clk 0:03:03]}  Qxh5 {[%clk 0:02:16]} 20. Qxh5 {[%clk 0:03:02]}  gxh5 {[%clk 0:02:17]} 21. f4 {[%clk 0:03:02]}  f6 {[%clk 0:02:00]} 22. Ra3 {[%clk 0:02:52]}  b6 {[%clk 0:01:52]} 23. Nb1 {[%clk 0:02:32]}  Bd7 {[%clk 0:01:45]} 24. Nd2 {[%clk 0:02:27]}  b5 {[%clk 0:01:45]} 25. axb5 {[%clk 0:02:20]}  axb5 {[%clk 0:01:46]} 26. Rea1 {[%clk 0:02:21]}  Rxa3 {[%clk 0:01:40]} 27. Rxa3 {[%clk 0:02:21]}  Kf7 {[%clk 0:01:39]} 28. Ra7 {[%clk 0:02:18]}  Ke7 {[%clk 0:01:39]} 29. Kg2 {[%clk 0:02:08]}  Rc8 {[%clk 0:01:08]} 30. Nf3 {[%clk 0:01:51]}  Kd8 {[%clk 0:00:56]} 31. e5 {[%clk 0:01:49]}  fxe5 {[%clk 0:00:52]} 32. fxe5 {[%clk 0:01:49]}  dxe5 {[%clk 0:00:49]} 33. Nxe5 {[%clk 0:01:49]}  Bf5 {[%clk 0:00:46]} 34. Nf7+ {[%clk 0:01:42]} 1-0


[Site "https://www.chess.com"]

[Event "Titled Tuesday Blitz April 26 Late 2022"]
[White "Leschinsky, Gary"]
[Black "Piekarski, Atila Balzer"]
[WhiteFideId "30951321"]
[BlackFideId "2119552"]
[WhiteElo "1782"]
[BlackElo "2050"]
[Result "1-0"]
[Round "07"]
[TimeControl "180+1"]
[Date "2022.04.26"]
[WhiteClock "0:01:40"]
[BlackClock "0:01:05"]

1. d4 {[%clk 0:03:00]}  d5 {[%clk 0:02:59]} 2. c4 {[%clk 0:03:00]}  dxc4 {[%clk 0:03:00]} 3. Nf3 {[%clk 0:03:01]}  Nf6 {[%clk 0:02:59]} 4. e3 {[%clk 0:03:01]}  e6 {[%clk 0:02:59]} 5. Bxc4 {[%clk 0:03:01]}  c5 {[%clk 0:02:59]} 6. O-O {[%clk 0:03:02]}  a6 {[%clk 0:02:59]} 7. e4 {[%clk 0:03:02]}  Nxe4 {[%clk 0:02:49]} 8. Qe2 {[%clk 0:02:57]}  Nf6 {[%clk 0:02:42]} 9. d5 {[%clk 0:02:57]}  Nxd5 {[%clk 0:02:36]} 10. Rd1 {[%clk 0:02:56]}  Be7 {[%clk 0:02:35]} 11. Nc3 {[%clk 0:02:51]}  O-O {[%clk 0:02:26]} 12. Nxd5 {[%clk 0:02:38]}  exd5 {[%clk 0:02:27]} 13. Bxd5 {[%clk 0:02:38]}  Qc7 {[%clk 0:02:17]} 14. Ng5 {[%clk 0:02:36]}  Bf5 {[%clk 0:01:44]} 15. Nxf7 {[%clk 0:01:47]}  Rxf7 {[%clk 0:01:43]} 16. Bf4 {[%clk 0:01:48]}  Qxf4 {[%clk 0:01:04]} 17. Qxe7 {[%clk 0:01:46]}  Bd7 {[%clk 0:01:05]} 18. Qd8+ {[%clk 0:01:40]} 1-0


[Site "https://www.chess.com"]